fUST/lending_fUST_20241216
["ID","MTS","AMOUNT","RATE_DAILY","PERIOD"]
[345549886,1734330643867,-500.0,0.00028219,7]
[345549888,1734330643877,-500.0,0.00028219,7]
[345549890,1734330643886,-2859.63,0.00028219,7]
[345549892,1734330643896,-347.832423,0.00028219,7]
[345549895,1734330643905,-157.82033491,0.00028219,2]
[345549897,1734330643914,-17736.55,0.000283,2]
[345549898,1734330643923,-21.0275487,0.000283,7]
[345549901,1734330643943,-1978.9724513,0.000283,7]
[345549904,1734330643953,-151.0,0.000283,7]
[345549906,1734330643962,-161.064489,0.000283,7]
[345549908,1734330643971,-161.064489,0.000283,7]
[345549910,1734330643981,-151.0,0.00028372,6]
[345549912,1734330643991,-712.10852779,0.0002839,5]
[345549914,1734330643999,-2000.0,0.000284,7]
[345549916,1734330644009,-300.0,0.000284,13]
[345549918,1734330644019,-152.35,0.000284,31]
[345549920,1734330644028,-152.35,0.000284,31]
[345549923,1734330644048,-152.35,0.000284,31]
[345549925,1734330644059,-152.35,0.000284,31]
[345549927,1734330644072,-26.68641132,0.000284,31]
[345549958,1734330644345,-0.04333456,0.000284,31]
[345549972,1734330644465,-646.18669673,0.00027199,2]
[345550135,1734330646122,-229.0,0.00027,2]
[345550138,1734330646132,-39.44816285,0.00027199,2]
[345550140,1734330646142,-685.63485958,0.00027199,2]
[345550142,1734330646153,-500.0,0.00027199,2]
[345550144,1734330646162,-685.63485958,0.00027199,2]
[345550146,1734330646171,-500.0,0.00027199,2]
[345550148,1734330646184,-500.0,0.00027199,2]
[345550150,1734330646193,-500.0,0.00027199,2]
[345550152,1734330646202,-255.88129225,0.00027199,2]
[345550154,1734330646211,-500.0,0.00027199,2]
[345550156,1734330646220,-500.0,0.00027199,2]
[345550158,1734330646229,-161.11062308,0.00027199,2]
[345550160,1734330646238,-500.0,0.00027199,2]
[345550162,1734330646247,-500.0,0.00027199,2]
[345550164,1734330646257,-500.0,0.00027199,2]
[345550166,1734330646265,-154.1077397,0.00027199,2]
[345550168,1734330646275,-500.0,0.00027199,2]
[345550170,1734330646284,-493.820587,0.00027397,7]
[345550172,1734330646293,-493.820587,0.00027397,7]
[345550174,1734330646302,-493.820587,0.00027397,7]
[345550176,1734330646312,-151.0,0.00027397,7]
[345550178,1734330646321,-151.0,0.00027397,7]
[345550180,1734330646330,-616.963839,0.00027397,7]
[345550182,1734330646339,-151.0,0.00027397,7]
[345550184,1734330646348,-616.963839,0.00027397,7]
[345550186,1734330646358,-616.963839,0.00027397,7]
[345550188,1734330646367,-84.65657954,0.00027397,7]
[345550714,1734330802016,259.84,0.00020222,2]
[345550724,1734331495582,165.609728,0.00013973,2]
[345550913,1734331846157,-165.609728,0.00021209,2]
[345550914,1734331846166,-450.340272,0.00025,14]
[345550915,1734331846295,-681.18425518,0.00025,14]
[345550916,1734331846305,-154.19279115,0.00026027,2]
[345550931,1734331955764,169.0,0.00026,60]
[345550932,1734332367453,165.609728,0.00013973,2]
[345551089,1734333039434,-165.609728,0.00022174,2]
[345551091,1734333039443,-169.898339,0.00022848,2]
[345551093,1734333039453,-300.0,0.00023112,2]
[345551095,1734333039462,-1333.44933794,0.00023112,2]
[345551127,1734333040451,-36351.53097003,0.00023112,2]
[345551128,1734333040460,-24900.0,0.00023113,2]
[345551129,1734333040469,-1035.38351207,0.00024013,2]
[345551130,1734333040479,-301.04308994,0.00024013,2]
[345551131,1734333040488,-1332.92789753,0.00024111,2]
[345551132,1734333040497,-2892.7206241,0.00024116,2]
[345551133,1734333040507,-161.323929,0.00024141,2]
[345551134,1734333040516,-500.0,0.000247,2]
[345551135,1734333040526,-433.45047956,0.000247,2]
[345551136,1734333040535,-500.0,0.000247,2]
[345551137,1734333040544,-573.49167601,0.000247,2]
[345551138,1734333040553,-193.2818494,0.00024706,2]
[345551139,1734333040565,-8748.17908159,0.00024776,2]
[345551140,1734333040574,-1035.38351202,0.00024862,2]
[345551141,1734333040583,-8748.17908159,0.00025155,2]
[345551142,1734333040593,-1000.0,0.00025248,2]
[345551143,1734333040602,-420.0,0.00025423,2]
[345551144,1734333040612,-8748.17908159,0.00025465,2]
[345551145,1734333040623,-300.0,0.00025499,2]
[345551146,1734333040632,-8748.17908159,0.0002553,2]
[345551147,1734333040642,-1035.38351202,0.00025711,2]
[345551148,1734333040651,-229.229463,0.00025753,2]
[345551149,1734333040660,-8748.1790816,0.00025787,2]
[345551150,1734333040669,-1035.38351202,0.0002656,2]
[345551151,1734333040679,-229.229463,0.00026706,2]
[345551152,1734333040688,-589.593,0.0002697,2]
[345551153,1734333040697,-3104.4538424,0.0002698,2]
[345551154,1734333040707,-200.0,0.00027,2]
[345551155,1734333040716,-600.0,0.00027353,2]
[345551156,1734333040725,-377.62677091,0.00027373,2]
[345551157,1734333040735,-262.65124179,0.00027373,2]
[345551158,1734333040744,-500.94952401,0.00027373,2]
[345551159,1734333040753,-501.45740999,0.00027373,2]
[345551160,1734333040761,-500.0,0.00027373,2]
[345551161,1734333040771,-268.05895241,0.00027373,2]
[345551162,1734333040780,-502.22346173,0.00027373,2]
[345551163,1734333040790,-243.99897795,0.00027373,2]
[345551164,1734333040799,-25518.73474411,0.00027396,5]
[345551165,1734333040808,-522.02945528,0.00027396,2]
[345551166,1734333040816,-500.0,0.00027397,7]
[345551167,1734333040826,-500.0,0.00027397,7]
[345551168,1734333040835,-501.10856102,0.00027397,7]
[345551169,1734333040844,-500.0,0.00027397,7]
[345551170,1734333040853,-505.32923533,0.00027397,7]
[345551171,1734333040865,-500.0,0.00027397,7]
[345551172,1734333040874,-506.83928555,0.00027397,7]
[345551173,1734333040883,-500.0,0.00027397,7]
[345551174,1734333040892,-500.0,0.00027397,7]
[345551175,1734333040901,-164.90700594,0.00027397,7]
[345551176,1734333040910,-506.54414155,0.00027397,7]
[345551177,1734333040919,-500.0,0.00027397,7]
[345551178,1734333040927,-500.0,0.00027397,7]
[345551179,1734333040937,-500.0,0.00027397,7]
[345551180,1734333040946,-500.0,0.00027397,7]
[345551181,1734333040956,-501.71316369,0.00027397,7]
[345551182,1734333040965,-500.0,0.00027397,7]
[345551183,1734333041064,-500.0,0.00027397,7]
[345551184,1734333041074,-500.0,0.00027397,7]
[345551185,1734333041084,-500.0,0.00027397,7]
[345551186,1734333041092,-508.39225805,0.00027397,7]
[345551187,1734333041103,-501.76724895,0.00027397,7]
[345551188,1734333041113,-168.0,0.00027397,7]
[345551189,1734333041126,-507.89121634,0.00027397,7]
[345551190,1734333041140,-500.0,0.00027397,7]
[345551191,1734333041149,-228.40680789,0.00027397,7]
[345551192,1734333041159,-500.0,0.00027397,7]
[345551193,1734333041168,-2143.22,0.00027397,2]
[345551194,1734333041177,-500.0,0.00027397,7]
[345551195,1734333041187,-500.0,0.00027397,7]
[345551196,1734333041196,-500.0,0.00027397,7]
[345551197,1734333041209,-500.0,0.00027397,7]
[345551198,1734333041218,-510.73321503,0.00027397,7]
[345551199,1734333041228,-501.83202146,0.00027397,2]
[345551200,1734333041238,-500.0,0.00027397,7]
[345551201,1734333041247,-500.0,0.00027397,7]
[345551202,1734333041256,-501.76175685,0.00027397,7]
[345551203,1734333041265,-562.88462751,0.00027397,7]
[345551204,1734333041275,-526.61353287,0.00027397,7]
[345551205,1734333041285,-500.0,0.00027397,7]
[345551206,1734333041294,-507.99473097,0.00027397,7]
[345551207,1734333041303,-500.0,0.00027397,7]
[345551208,1734333041313,-500.0,0.00027397,7]
[345551209,1734333041322,-506.19223073,0.00027397,7]
[345551210,1734333041331,-500.0,0.00027397,7]
[345551211,1734333041340,-500.0,0.00027397,7]
[345551212,1734333041349,-520.65637676,0.00027397,7]
[345551213,1734333041359,-500.0,0.00027397,7]
[345551214,1734333041372,-322.83351555,0.00027397,7]
[345551215,1734333041381,-500.0,0.00027397,7]
[345551216,1734333041390,-500.0,0.00027397,7]
[345551217,1734333041399,-500.0,0.00027397,7]
[345551218,1734333041409,-500.0,0.00027397,7]
[345551219,1734333041418,-500.0,0.00027397,7]
[345551220,1734333041427,-500.0,0.00027397,7]
[345551221,1734333041436,-515.91504526,0.00027397,7]
[345551222,1734333041445,-1258.3,0.00027397,7]
[345551223,1734333041455,-500.0,0.00027397,7]
[345551224,1734333041464,-477.16012245,0.00027397,7]
[345551225,1734333041473,-534.41,0.00027397,7]
[345551226,1734333041483,-1020.16,0.00027397,7]
[345551227,1734333041491,-500.0,0.00027397,7]
[345551228,1734333041500,-500.0,0.00027397,7]
[345551229,1734333041509,-500.0,0.00027397,7]
[345551230,1734333041519,-571.13,0.00027397,7]
[345551231,1734333041528,-1698.02,0.00027397,7]
[345551232,1734333041537,-500.0,0.00027397,7]
[345551233,1734333041546,-500.0,0.00027397,7]
[345551234,1734333041555,-500.0,0.00027397,7]
[345551235,1734333041565,-500.0,0.00027397,7]
[345551236,1734333041574,-500.0,0.00027397,7]
[345551237,1734333041584,-504.77057333,0.00027397,7]
[345551238,1734333041593,-500.0,0.00027397,7]
[345551239,1734333041603,-500.0,0.00027397,7]
[345551240,1734333041613,-500.0,0.00027397,7]
[345551241,1734333041623,-502.8526723,0.00027397,7]
[345551242,1734333041632,-500.0,0.00027397,7]
[345551243,1734333041642,-853.31,0.00027397,7]
[345551244,1734333041651,-500.0,0.00027397,7]
[345551245,1734333041660,-500.0,0.00027397,7]
[345551246,1734333041669,-500.0,0.00027397,7]
[345551247,1734333041678,-504.59004627,0.00027397,7]
[345551248,1734333041687,-666.05,0.00027397,5]
[345551249,1734333041696,-503.89135592,0.00027397,7]
[345551250,1734333041705,-500.0,0.00027397,7]
[345551251,1734333041714,-511.69054435,0.00027397,7]
[345551252,1734333041723,-500.0,0.00027397,7]
[345551253,1734333041733,-502.81964183,0.00027397,7]
[345551254,1734333041742,-65153.61,0.00027397,7]
[345551255,1734333041752,-501.80392648,0.00027397,7]
[345551256,1734333041762,-500.0,0.00027397,7]
[345551257,1734333041771,-2740.48,0.00027397,7]
[345551258,1734333041782,-500.0,0.00027397,7]
[345551259,1734333041791,-511.85910151,0.00027397,7]
[345551260,1734333041800,-503.63843253,0.00027397,7]
[345551261,1734333041809,-328.64434003,0.00027397,7]
[345551262,1734333041819,-500.0,0.00027397,7]
[345551263,1734333041829,-500.0,0.00027397,7]
[345551264,1734333041838,-500.0,0.00027397,7]
[345551265,1734333041847,-505.27995439,0.00027397,7]
[345551266,1734333041856,-500.0,0.00027397,7]
[345551267,1734333041869,-502.62096378,0.00027397,7]
[345551268,1734333041884,-800.57,0.00027397,7]
[345551269,1734333041894,-1522.92,0.00027397,7]
[345551270,1734333041903,-514.1989873,0.00027397,7]
[345551271,1734333041913,-513.64269642,0.00027397,7]
[345551272,1734333041922,-500.0,0.00027397,7]
[345551273,1734333041931,-502.76001849,0.00027397,7]
[345551274,1734333041941,-505.15480537,0.00027397,7]
[345551275,1734333041950,-500.0,0.00027397,7]
[345551276,1734333041959,-503.76657928,0.00027397,7]
[345551277,1734333041968,-500.0,0.00027397,7]
[345551278,1734333041978,-386.10589763,0.00027397,7]
[345551279,1734333041987,-1000.0,0.00027397,2]
[345551280,1734333041996,-500.0,0.00027397,2]
[345551281,1734333042006,-500.0,0.00027397,7]
[345551282,1734333042015,-157.82033491,0.00027397,2]
[345551283,1734333042025,-1035.38351202,0.00027408,2]
[345551284,1734333042034,-3104.4538424,0.0002748,2]
[345551285,1734333042043,-420.0,0.0002761,2]
[345551286,1734333042052,-704.66523866,0.00027638,2]
[345551287,1734333042061,-150.708,0.00027655,2]
[345551288,1734333042071,-2160.0,0.00027655,2]
[345551289,1734333042080,-533.0,0.00027655,2]
[345551290,1734333042090,-2369.0,0.00027655,2]
[345551291,1734333042099,-229.229463,0.00027659,2]
[345551292,1734333042109,-500.0,0.00027671,7]
[345551293,1734333042120,-500.0,0.00027671,7]
[345551294,1734333042129,-500.0,0.00027671,7]
[345551295,1734333042139,-500.0,0.00027671,7]
[345551296,1734333042148,-2143.22,0.00027671,2]
[345551297,1734333042158,-500.0,0.00027671,7]
[345551298,1734333042167,-174.10327164,0.00027671,7]
[345551299,1734333042176,-500.0,0.00027671,7]
[345551300,1734333042186,-500.0,0.00027671,7]
[345551301,1734333042195,-151.0,0.00027671,7]
[345551302,1734333042209,-151.0,0.00027671,7]
[345551303,1734333042218,-151.0,0.00027671,7]
[345551304,1734333042227,-500.0,0.00027671,7]
[345551305,1734333042237,-500.0,0.00027671,7]
[345551306,1734333042246,-151.0,0.00027671,7]
[345551307,1734333042256,-241.037004,0.00027671,7]
[345551308,1734333042265,-500.0,0.00027671,7]
[345551309,1734333042275,-500.0,0.00027671,7]
[345551310,1734333042284,-241.037004,0.00027671,7]
[345551311,1734333042294,-500.0,0.00027671,7]
[345551312,1734333042303,-511.54555679,0.00027671,7]
[345551313,1734333042313,-500.0,0.00027671,7]
[345551314,1734333042322,-151.0,0.00027671,7]
[345551315,1734333042331,-151.0,0.00027671,7]
[345551316,1734333042340,-500.0,0.00027671,7]
[345551317,1734333042349,-151.0,0.00027671,7]
[345551318,1734333042358,-500.0,0.00027671,7]
[345551319,1734333042369,-151.0,0.00027671,7]
[345551320,1734333042378,-151.0,0.00027671,7]
[345551321,1734333042388,-500.0,0.00027671,7]
[345551322,1734333042398,-500.0,0.00027671,7]
[345551323,1734333042407,-1258.3,0.00027671,7]
[345551324,1734333042416,-534.41,0.00027671,7]
[345551325,1734333042425,-1020.16,0.00027671,7]
[345551326,1734333042435,-517.59232035,0.00027671,7]
[345551327,1734333042444,-151.0,0.00027671,7]
[345551328,1734333042453,-151.0,0.00027671,7]
[345551329,1734333042462,-151.0,0.00027671,7]
[345551330,1734333042471,-500.0,0.00027671,7]
[345551331,1734333042480,-151.0,0.00027671,7]
[345551332,1734333042490,-500.0,0.00027671,7]
[345551333,1734333042499,-571.13,0.00027671,7]
[345551334,1734333042508,-1698.02,0.00027671,7]
[345551335,1734333042517,-500.0,0.00027671,7]
[345551336,1734333042527,-500.0,0.00027671,7]
[345551337,1734333042536,-500.0,0.00027671,7]
[345551338,1734333042547,-500.0,0.00027671,7]
[345551339,1734333042556,-500.0,0.00027671,7]
[345551340,1734333042566,-352.417597,0.00027671,7]
[345551341,1734333042575,-500.0,0.00027671,7]
[345551342,1734333042585,-500.0,0.00027671,7]
[345551343,1734333042594,-853.31,0.00027671,7]
[345551344,1734333042604,-352.417597,0.00027671,7]
[345551345,1734333042613,-385.504538,0.00027671,7]
[345551346,1734333042625,-385.504538,0.00027671,7]
[345551347,1734333042634,-500.0,0.00027671,7]
[345551348,1734333042644,-627.46290254,0.00027671,7]
[345551349,1734333042653,-500.0,0.00027671,7]
[345551350,1734333042663,-666.05,0.00027671,5]
[345551351,1734333042672,-276.038675,0.00027671,7]
[345551352,1734333042682,-500.0,0.00027671,7]
[345551353,1734333042691,-276.038675,0.00027671,7]
[345551354,1734333042701,-367.258754,0.00027671,7]
[345551355,1734333042710,-367.258754,0.00027671,7]
[345551356,1734333042719,-500.0,0.00027671,7]
[345551357,1734333042729,-65153.61,0.00027671,7]
[345551358,1734333042739,-500.0,0.00027671,7]
[345551359,1734333042749,-2740.48,0.00027671,7]
[345551361,1734333042758,-500.0,0.00027671,7]
[345551362,1734333042767,-500.0,0.00027671,7]
[345551363,1734333042777,-500.0,0.00027671,7]
[345551364,1734333042786,-800.57,0.00027671,7]
[345551365,1734333042795,-151.0,0.00027671,7]
[345551366,1734333042804,-1522.92,0.00027671,7]
[345551367,1734333042813,-500.0,0.00027671,7]
[345551368,1734333042823,-500.0,0.00027671,7]
[345551369,1734333042832,-1000.0,0.00027671,2]
[345551370,1734333042841,-159.69164692,0.00027671,2]
[345551371,1734333042851,-566.06676919,0.00027671,7]
[345551372,1734333042860,-200.0,0.00027671,2]
[345551373,1734333042872,-157.82033491,0.00027699,2]
[345551374,1734333042881,-165.0,0.00027739,3]
[345551376,1734333042891,-165.0,0.00027739,3]
[345551378,1734333042901,-173.17,0.00027739,3]
[345551380,1734333042910,-157.8203349,0.00027753,2]
[345551382,1734333042919,-597.2,0.00027801,15]
[345551384,1734333042927,-1562.56579549,0.00027845,2]
[345551386,1734333042936,-471.49686464,0.00027885,2]
[345551387,1734333042946,-151.0,0.000279,19]
[345551388,1734333042956,-1274.77394061,0.00027917,22]
[345551389,1734333042965,-1000.0,0.00027921,5]
[345551390,1734333042974,-151.0,0.0002794,7]
[345551391,1734333042984,-151.0,0.00027941,7]
[345551393,1734333042993,-151.0,0.00027941,7]
[345551394,1734333043002,-151.0,0.00027941,7]
[345551396,1734333043011,-151.0,0.00027941,7]
[345551398,1734333043021,-151.0,0.00027941,7]
[345551399,1734333043030,-151.0,0.00027941,7]
[345551400,1734333043039,-151.0,0.00027941,7]
[345551401,1734333043048,-151.0,0.00027941,7]
[345551402,1734333043057,-151.0,0.00027941,7]
[345551403,1734333043067,-352.417597,0.00027941,7]
[345551405,1734333043077,-385.504538,0.00027941,7]
[345551406,1734333043086,-352.417597,0.00027941,7]
[345551407,1734333043095,-385.504538,0.00027941,7]
[345551408,1734333043105,-276.038675,0.00027941,7]
[345551409,1734333043114,-276.038675,0.00027941,7]
[345551410,1734333043126,-367.258754,0.00027941,7]
[345551411,1734333043134,-367.258754,0.00027941,7]
[345551412,1734333043143,-151.0,0.00027942,7]
[345551413,1734333043153,-715.321389,0.00027942,7]
[345551414,1734333043162,-715.321389,0.00027942,7]
[345551415,1734333043171,-441.505227,0.00027942,7]
[345551416,1734333043180,-441.505227,0.00027942,7]
[345551418,1734333043190,-151.0,0.00027942,7]
[345551419,1734333043199,-347.832423,0.00027942,7]
[345551420,1734333043212,-151.0,0.00027942,7]
[345551421,1734333043221,-347.832423,0.00027942,7]
[345551422,1734333043230,-151.0,0.00027942,7]
[345551423,1734333043239,-241.037004,0.00027942,7]
[345551424,1734333043248,-241.037004,0.00027942,7]
[345551425,1734333043258,-151.0,0.00027944,7]
[345551426,1734333043267,-416.563328,0.00027944,7]
[345551427,1734333043276,-416.563328,0.00027944,7]
[345551428,1734333043367,-151.0,0.00027944,7]
[345551429,1734333043377,-151.0,0.00027944,7]
[345551431,1734333043386,-151.0,0.00027944,7]
[345551432,1734333043395,-161.09788,0.00027944,7]
[345551434,1734333043405,-151.0,0.00027945,7]
[345551435,1734333043414,-151.0,0.00027945,7]
[345551436,1734333043423,-151.0,0.00027945,7]
[345551437,1734333043432,-381.54853953,0.00027945,7]
[345551438,1734333043441,-151.0,0.00027945,7]
[345551439,1734333043450,-344.42058818,0.00027945,7]
[345551440,1734333043459,-151.0,0.00027945,7]
[345551441,1734333043469,-151.0,0.00027945,7]
[345551442,1734333043478,-416.563328,0.00027945,7]
[345551443,1734333043487,-416.563328,0.00027945,7]
[345551444,1734333043497,-500.0,0.00027945,7]
[345551445,1734333043506,-500.0,0.00027945,7]
[345551446,1734333043515,-151.0,0.00027945,7]
[345551447,1734333043525,-2143.22,0.00027945,2]
[345551448,1734333043534,-151.0,0.00027945,7]
[345551449,1734333043544,-151.0,0.00027945,7]
[345551450,1734333043553,-500.0,0.00027945,7]
[345551451,1734333043562,-500.0,0.00027945,7]
[345551452,1734333043572,-500.0,0.00027945,7]
[345551453,1734333043581,-151.0,0.00027945,7]
[345551454,1734333043590,-715.321389,0.00027945,7]
[345551455,1734333043599,-715.321389,0.00027945,7]
[345551456,1734333043608,-441.505227,0.00027945,7]
[345551457,1734333043618,-441.505227,0.00027945,7]
[345551458,1734333043627,-151.0,0.00027945,7]
[345551459,1734333043636,-347.832423,0.00027945,7]
[345551460,1734333043645,-151.0,0.00027945,7]
[345551461,1734333043654,-347.832423,0.00027945,7]
[345551462,1734333043663,-194.44500215,0.00027945,7]
[345551463,1734333043674,-151.0,0.00027945,7]
[345551464,1734333043683,-241.037004,0.00027945,7]
[345551465,1734333043692,-500.0,0.00027945,7]
[345551466,1734333043701,-500.0,0.00027945,7]
[345551467,1734333043711,-241.037004,0.00027945,7]
[345551468,1734333043720,-500.0,0.00027945,7]
[345551469,1734333043730,-500.0,0.00027945,7]
[345551470,1734333043739,-216.993552,0.00027945,7]
[345551471,1734333043748,-151.0,0.00027945,7]
[345551472,1734333043757,-500.0,0.00027945,7]
[345551473,1734333043766,-151.0,0.00027945,7]
[345551474,1734333043775,-151.0,0.00027945,7]
[345551475,1734333043785,-500.0,0.00027945,7]
[345551476,1734333043793,-500.0,0.00027945,7]
[345551477,1734333043802,-1258.3,0.00027945,7]
[345551478,1734333043812,-534.41,0.00027945,7]
[345551479,1734333043821,-1020.16,0.00027945,7]
[345551480,1734333043830,-151.0,0.00027945,7]
[345551481,1734333043839,-151.0,0.00027945,7]
[345551482,1734333043848,-151.0,0.00027945,7]
[345551483,1734333043857,-500.0,0.00027945,7]
[345551484,1734333043867,-151.0,0.00027945,7]
[345551485,1734333043877,-500.0,0.00027945,7]
[345551486,1734333043886,-571.13,0.00027945,7]
[345551487,1734333043895,-1698.02,0.00027945,7]
[345551488,1734333043904,-500.0,0.00027945,7]
[345551489,1734333043913,-500.0,0.00027945,7]
[345551490,1734333043922,-500.0,0.00027945,7]
[345551491,1734333043932,-352.417597,0.00027945,7]
[345551492,1734333043942,-500.0,0.00027945,7]
[345551493,1734333043951,-500.0,0.00027945,7]
[345551494,1734333043960,-853.31,0.00027945,7]
[345551495,1734333043969,-385.504538,0.00027945,7]
[345551496,1734333043979,-352.417597,0.00027945,7]
[345551497,1734333043988,-500.0,0.00027945,7]
[345551498,1734333043997,-385.504538,0.00027945,7]
[345551499,1734333044006,-666.05,0.00027945,5]
[345551500,1734333044016,-276.038675,0.00027945,7]
[345551501,1734333044026,-500.0,0.00027945,7]
[345551502,1734333044035,-276.038675,0.00027945,7]
[345551503,1734333044045,-367.258754,0.00027945,7]
[345551504,1734333044054,-367.258754,0.00027945,7]
[345551505,1734333044063,-65153.61,0.00027945,7]
[345551506,1734333044073,-500.0,0.00027945,7]
[345551507,1734333044082,-2740.48,0.00027945,7]
[345551508,1734333044091,-500.0,0.00027945,7]
[345551509,1734333044101,-800.57,0.00027945,7]
[345551510,1734333044110,-151.0,0.00027945,7]
[345551511,1734333044120,-1522.92,0.00027945,7]
[345551512,1734333044130,-500.0,0.00027945,7]
[345551513,1734333044139,-500.0,0.00027945,7]
[345551514,1734333044149,-568.03072089,0.00027945,2]
[345551515,1734333044158,-587.0,0.00027965,2]
[345551516,1734333044168,-502.13809932,0.00027973,5]
[345551517,1734333044177,-500.0,0.00027973,5]
[345551518,1734333044187,-157.82033491,0.00027973,2]
[345551519,1734333044196,-151.0,0.00027973,7]
[345551520,1734333044212,-151.0,0.00027973,7]
[345551521,1734333044222,-244.918786,0.00027973,7]
[345551522,1734333044231,-151.0,0.00027973,7]
[345551523,1734333044241,-352.417597,0.00027973,7]
[345551524,1734333044253,-385.504538,0.00027973,7]
[345551525,1734333044262,-352.417597,0.00027973,7]
[345551526,1734333044272,-385.504538,0.00027973,7]
[345551527,1734333044281,-276.038675,0.00027973,7]
[345551528,1734333044291,-276.038675,0.00027973,7]
[345551529,1734333044301,-367.258754,0.00027973,7]
[345551530,1734333044310,-367.258754,0.00027973,7]
[345551531,1734333044320,-3104.4538424,0.0002798,2]
[345551532,1734333044329,-151.0,0.00027997,7]
[345551533,1734333044339,-151.0,0.00027997,7]
[345551534,1734333044348,-151.0,0.00027998,7]
[345551535,1734333044358,-151.0,0.00027998,7]
[345551536,1734333044371,-151.0,0.00027998,7]
[345551537,1734333044380,-7988.10458143,0.00028,2]
[345551538,1734333044390,-7988.10458141,0.00028,2]
[345551539,1734333044399,-7988.10458141,0.00028,2]
[345551540,1734333044408,-7988.10458141,0.00028,2]
[345551541,1734333044418,-200.0,0.00028,2]
[345551542,1734333044427,-151.0,0.00028,7]
[345551543,1734333044437,-151.0,0.00028,7]
[345551544,1734333044446,-151.0,0.00028,7]
[345551545,1734333044455,-151.0,0.00028,7]
[345551546,1734333044465,-151.0,0.00028,7]
[345551547,1734333044474,-151.0,0.00028,7]
[345551548,1734333044483,-151.0,0.00028,7]
[345551549,1734333044493,-151.0,0.00028,7]
[345551550,1734333044502,-416.563328,0.00028,7]
[345551551,1734333044511,-416.563328,0.00028,7]
[345551552,1734333044521,-151.0,0.00028,7]
[345551553,1734333044531,-151.0,0.00028,7]
[345551554,1734333044540,-151.0,0.00028,7]
[345551555,1734333044550,-715.321389,0.00028,7]
[345551556,1734333044559,-715.321389,0.00028,7]
[345551557,1734333044568,-441.505227,0.00028,7]
[345551558,1734333044578,-441.505227,0.00028,7]
[345551559,1734333044587,-151.0,0.00028,7]
[345551560,1734333044597,-151.0,0.00028,7]
[345551561,1734333044606,-347.832423,0.00028,7]
[345551562,1734333044615,-151.0,0.00028,7]
[345551563,1734333044626,-151.0,0.00028,7]
[345551564,1734333044636,-347.832423,0.00028,7]
[345551565,1734333044645,-151.0,0.00028,7]
[345551566,1734333044654,-158.72822,0.00028,7]
[345551567,1734333044663,-241.037004,0.00028,7]
[345551568,1734333044673,-241.037004,0.00028,7]
[345551569,1734333044682,-241.037004,0.00028,7]
[345551570,1734333044691,-241.037004,0.00028,7]
[345551571,1734333044700,-151.0,0.00028,7]
[345551572,1734333044709,-151.0,0.00028,7]
[345551573,1734333044718,-151.0,0.00028,7]
[345551574,1734333044727,-151.0,0.00028,7]
[345551575,1734333044736,-151.0,0.00028,7]
[345551576,1734333044745,-151.0,0.00028,7]
[345551577,1734333044755,-352.417597,0.00028,7]
[345551578,1734333044764,-385.504538,0.00028,7]
[345551579,1734333044773,-352.417597,0.00028,7]